Cogmind - Beta 13 @@@ ROGUE MODE // 2024.04.11 @ 18:19:57 Player: NikedNOGsing_in_can't Result: Destroyed by D-53 Grenadier with Mini Grenade Launcher Performance ------------- Evolutions (0) 0 Regions Visited (2) 400 Robots Destroyed (18) 90 Value Destroyed (374) 374 Prototype IDs (1) 20 Alien Tech Used (0) 0 Bonus (-3) -3 TOTAL SCORE: 881 Bonus ------- Friendly Fire -3 Cogmind --------- Core Integrity 0/250 Matter 199/300 Energy 75/100 System Corruption 0% Temperature Cool (0) Movement Treading (320) Ox2 Location -10/Mines Parts ------- > --- POWER (1) -------- (None) > --- PROPULSION (2) --- Light Treads > --- UTILITY (2) ------ High-capacity Storage Unit Light Armor Plating > --- WEAPON (2) ------- Grenade Launcher Grenade Launcher > --- INVENTORY (20) --- Improved Ion Engine Improved Ion Engine Aluminum Leg Aluminum Leg Flight Unit Flight Unit Heat Sink Visual Processing Unit Visual Processing Unit Experimental Sensor Array Targeting Computer EM Pulse Gun Medium Laser Spread Laser Mining Laser Blade Trap Peak State ------------ > --- POWER ------------ Improved Ion Engine > --- PROPULSION ------- Light Treads Light Treads > --- UTILITY ---------- High-capacity Storage Unit Experimental Sensor Array > --- WEAPON ----------- Spread Laser Grenade Launcher > --- INVENTORY -------- Improved Ion Engine Improved Ion Engine Improved Ion Engine Aluminum Leg Aluminum Leg Flight Unit Heat Sink Visual Processing Unit Targeting Computer Light Armor Plating EM Pulse Gun Medium Laser Grenade Launcher Grenade Launcher Blade Trap Blade Trap [Rating: 19] Favorites ----------- Power Improved Ion Engine Engine Improved Ion Engine Propulsion Light Treads Treads Light Treads Utility High-capacity Storage Unit Device Experimental Sensor Array Storage High-capacity Storage Unit Processor Targeting Computer Protection Light Armor Plating Weapon Grenade Launcher Energy Gun Spread Laser Launcher Grenade Launcher Build | -11 -10 -10 ------- Run | Yrd Mat Min Slots Evolved . | . . . Power . | . . . Propulsion . | . . . Utility . | . . . Weapon . | . . . Parts Attached 23 | 6 7 10 Power 4 | 1 2 1 Engine 4 | 1 2 1 Core . | . . . Reactor . | . . . Propulsion 2 | 2 . . Treads 2 | 2 . . Leg . | . . . Wheel . | . . . Hover . | . . . Flight . | . . . Utility 6 | 1 2 3 Device 1 | . . 1 Storage 3 | 1 1 1 Processor 1 | . 1 . Hackware . | . . . Protection 1 | . . 1 Artifact . | . . . Weapon 11 | 2 3 6 Energy Gun 5 | 2 1 2 Energy Cannon . | . . . Ballistic Gun . | . . . Ballistic Cannon . | . . . Launcher 6 | . 2 4 Special Weapon . | . . . Impact Weapon . | . . . Slashing Weapon . | . . . Piercing Weapon . | . . . Special Melee Weapon . | . . . Unidentified Prototypes 1 | . . 1 Parts Lost 5 | . . 5 Power 2 | . . 2 Propulsion 1 | . . 1 Utility . | . . . Weapon 2 | . . 2 Highest Loss Streak 5 | . . 5 To Critical Strikes . | . . . Average Slot Usage (%) 98 | . 97 99 Engine 13 | . 14 13 Treads 27 | . 28 27 Device 3 | . . 5 Storage 13 | . 14 13 Processor 9 | . 11 7 Energy Gun 14 | . 10 16 Launcher 13 | . 17 11 Naked Turns . | . . . Heaviest Build 56 | 14 52 56 Greatest Support 40 | 40 40 40 Greatest Overweight (x) 1 | . 1 1 Average Overweight (x) . | . . . Largest Inventory Capacity 20 | 8 20 20 Average Capacity 18 | 6 19 19 Most Carried 20 | 5 15 20 Average Carried 13 | 2 9 18 Final Capacity 20 | 8 20 20 Final Carried 16 | 3 15 16 Class Distribution -------------------- 100% | Mutant Dominant Class ---------------- Mutant | -10/Materials Mutant | -10/Mines Resources | -11 -10 -10 ----------- Run | Yrd Mat Min Matter Collected 534 | 242 122 170 Remotely . | . . . Salvage Created 362 | . 197 165 Parts 34 | . 27 7 Haulers Intercepted . | . . . Recyclers Shooed 1 | . . 1 Parts Field Recycled . | . . . Retrieved Matter . | . . . Parts Self-Destructed . | . . . Prevented . | . . . Kills | -11 -10 -10 ------- Run | Yrd Mat Min Combat Hostiles Destroyed 24 | . 10 14 Guns 2 | . 1 1 AOE 22 | . 9 13 Classes Destroyed 8 | . 5 3 Worker 2 | . 2 . Builder 2 | . 1 1 Recycler 1 | . . 1 Watcher 2 | . 2 . Swarmer 6 | . 6 . Grunt 4 | . 4 . Sentry 1 | . . 1 Assembled 13 | . . 13 Best Kill Streak 14 | . 8 14 Combat Bots Only 13 | . 7 13 Max Kills in Single Turn 6 | . 6 5 Gunslinging . | . . . Exploded 5 | . 5 5 Melee . | . . . Uniques/NPCs Destroyed . | . . . Combat | -11 -10 -10 -------- Run | Yrd Mat Min Hostile Shots Fired 69 | . 28 41 Missed 17 | . 5 12 Damage Taken 1069 | . 279 790 Core 256 | . 61 195 Absorbed by Shields . | . . . Core Remaining (%) 100 | 100 . . Volleys Fired 26 | . 12 14 Largest 2 | . 2 2 Hottest 95 | . 70 95 Shots Fired 42 | . 22 20 Gun 19 | . 9 10 Cannon . | . . . Launcher 23 | . 13 10 Special . | . . . Kinetic . | . . . Thermal 10 | . . 10 Explosive 23 | . 13 10 Electromagnetic 9 | . 9 . Robot Hit Streak 12 | . 6 12 Robot Miss Streak 3 | . 2 3 Penetration Max . | . . . Secondary Targets . | . . . Shots Hit Robots 23 | . 12 11 Core Hits 67 | . 27 40 Critical Kills . | . . . Critical Parts Destroyed . | . . . Critical Strikes . | . . . Melee Attacks . | . . . Impact . | . . . Slashing . | . . . Piercing . | . . . Sneak Attacks . | . . . Combat Hostiles . | . . . Follow-up Attacks . | . . . Damage Inflicted 1805 | . 869 936 Guns 162 | . 63 99 Cannons . | . . . Explosions 1643 | . 806 837 Melee . | . . . Ramming . | . . . Kinetic . | . . . Thermal 142 | . 43 99 Explosive 1600 | . 763 837 Electromagnetic 63 | . 63 . Impact . | . . . Slashing . | . . . Piercing . | . . . Highest Corruption . | . . . Average Corruption . | . . . Corruption Purged . | . . . Corruption Blocked . | . . . Overload Shots . | . . . Overflow Damage 26 | . . 26 Projectiles . | . . . Explosions 26 | . . 26 Melee . | . . . Knockbacks . | . . . Impact . | . . . Kinetic . | . . . Secondary . | . . . Self-Inflicted Damage 164 | . 48 116 Shots 7 | . 3 4 Rammed . | . . . Targets Rammed . | . . . Kicked . | . . . Crushed . | . . . Highest Temperature 104 | . 90 104 Average Temperature 31 | . 27 34 Received Heat Transfer 159 | . 81 78 Siege Activations . | . . . Robots Corrupted . | . . . Combat Hostiles . | . . . Parts Fried . | . . . Impact Corruptions . | . . . Robots Melted . | . . . Combat Hostiles . | . . . Parts Melted . | . . . Heat Transferred 175 | . 50 125 Parts Sabotaged . | . . . Parts Stolen . | . . . Parts Stripped . | . . . Power Chain Reactions 1 | . 1 . Alert | -11 -10 -10 ------- Run | Yrd Mat Min Peak Influence 252 | . 252 132 Initial 97 | . . 97 Average 96 | . 127 81 Maximum Alert Level 1 | . 1 . Low Security (%) 81 | 100 54 100 Level 1 18 | . 45 . Level 2 . | . . . Level 3 . | . . . Level 4 . | . . . Level 5 . | . . . High Security . | . . . Max Security . | . . . Squads Dispatched 2 | . 2 . Investigation 1 | . 1 . Extermination . | . . . Reinforcement 1 | . 1 . Assault . | . . . Garrison . | . . . Intercept . | . . . Searches Triggered . | . . . Construction Impeded . | . . . Haulers Reinforced . | . . . Active Scanning Responses . | . . . Cargo Convoy Interrupts . | . . . Stealth | -11 -10 -10 --------- Run | Yrd Mat Min Distress Signals 1 | . 1 . Communications Jammed . | . . . Distress Signals . | . . . Times Spotted 30 | . 11 19 Peak Tracking Total 11 | . 7 11 Tactical Retreats . | . . . Traps | -11 -10 -10 ------- Run | Yrd Mat Min Traps Triggered 1 | . 1 . Indirectly . | . . . Trap Hack Attempts . | . . . Triggered . | . . . Disarmed . | . . . Reprogrammed . | . . . Reused . | . . . Traps Extracted . | . . . Installed . | . . . Triggered . | . . . Most Traps Carried 2 | . . 2 Machines | -11 -10 -10 ---------- Run | Yrd Mat Min Machines Disabled 7 | . 4 3 Max in Single Turn 3 | . 1 3 Machines Repaired . | . . . Machines Dismantled . | . . . Machines Sabotaged . | . . . Overloaded Fab Kills . | . . . Hacking | -11 -10 -10 --------- Run | Yrd Mat Min Machines Accessed 3 | . 3 . Terminals 3 | . 3 . Fabricators . | . . . Repair Stations . | . . . Recycling Units . | . . . Scanalyzers . | . . . Garrison Access . | . . . Total Hacks 9 | . 9 . Successful 1 | . 1 . Failed 8 | . 8 . Catastrophic 2 | . 2 . Database Lockouts . | . . . Manual 7 | . 7 . Terminals 9 | . 9 . Fabricators . | . . . Repair Stations . | . . . Recycling Units . | . . . Scanalyzers . | . . . Garrison Access . | . . . Terminal Hacks 1 | . 1 . Hauler Manifests 1 | . 1 . Fabricator Hacks . | . . . Repair Station Hacks . | . . . Recycling Unit Hacks . | . . . Scanalyzer . | . . . Garrison Access Hacks . | . . . Unauthorized Hacks . | . . . Terminals . | . . . Fabricators . | . . . Repair Stations . | . . . Recycling Units . | . . . Scanalyzers . | . . . Garrison Access . | . . . Data Cores Recovered . | . . . Used . | . . . Hacking Detections 3 | . 3 . Full Trace Events 1 | . 1 . Feedback Events . | . . . Feedback Blocked . | . . . Robot Schematics Acquired . | . . . Robots Built . | . . . Authchips . | . . . Time . | . . . Total Robot Build Rating . | . . . Part Schematics Acquired . | . . . Parts Built . | . . . Authchips . | . . . Time . | . . . Total Part Build Rating . | . . . Parts Repaired . | . . . Time . | . . . Parts Recycled . | . . . Recycled Matter . | . . . Retrieved Matter . | . . . Retrieved Components . | . . . Parts Scanalyzed . | . . . Part Schematics Acquired . | . . . Parts Damaged . | . . . Bothacking | -11 -10 -10 ------------ Run | Yrd Mat Min Used RIF Installer . | . . . Robots Hacked . | . . . Non-combat . | . . . Combat . | . . . Robot Hacks Applied . | . . . Relay Couplers Released . | . . . Fabnet Peak Effective % . | . . . Robots Rewired . | . . . Allies Hacked . | . . . Hacks Repelled . | . . . Allies | -11 -10 -10 -------- Run | Yrd Mat Min Total Allies . | . . . Largest Group . | . . . Highest-Rated Group . | . . . Highest-Rated Ally . | . . . Total Orders . | . . . Ally Attacks . | . . . Total Damage . | . . . Kills . | . . . Allies Corrupted . | . . . Allies Melted . | . . . Intel | -11 -10 -10 ------- Run | Yrd Mat Min Robot Analysis Total . | . . . Derelict Logs Recovered 1 | . . 1 Drone Launches . | . . . Drone Recoveries . | . . . Exploration | -11 -10 -10 ------------- Run | Yrd Mat Min Turns Passed 1830 | 96 757 977 Spaces Moved 726 | 55 294 377 Core 5 | 5 . . Treads 721 | 50 294 377 Legs . | . . . Wheels . | . . . Hover . | . . . Flight . | . . . Fastest Speed 50 | 50 160 160 Average Speed 229 | 150 231 239 Slowest Speed 240 | 160 240 240 Overloaded Moves . | . . . Propulsion Burnouts . | . . . Robots Hopped . | . . . Cave-ins Triggered . | . . . Exploration Rate (%) 38 | 4 45 66 Regions Visited 2 Branch Regions 1 Pre-discovered Areas 1 | . . 1 Known Exits Taken . | . . . Unknown Exits Taken 2 | 1 1 . Scrap Searched . | . . . Spaces Dug 15 | . 15 . Terrain Destroyed 168 | . 93 75 Melee . | . . . Projectile . | . . . AOE 168 | . 93 75 Terrain Rammed . | . . . Walls Destroyed . | . . . Machines Disabled . | . . . Actions | -11 -10 -10 --------- Run | Yrd Mat Min Total 850 | 69 349 432 Wait 19 | . 17 2 Move 724 | 54 293 377 Hop . | . . . Pick Up 50 | 9 17 24 Fast Attach . | . . . Attach 13 | 6 2 5 Detach . | . . . Swap 10 | . 5 5 Drop 8 | . 3 5 Fire 26 | . 12 14 Melee . | . . . Ram . | . . . Kick . | . . . Crush . | . . . Escape Stasis . | . . . Rewire . | . . . Trap . | . . . Miscellaneous . | . . . Route ------- -11/Scrapyard -10/Materials (discovered 2 exits: [*Mat] / [*Min]) -10/Mines (discovered 1 exit: [*Mat]) History --------- Turn | Location | Event 3 | -11/Scrapyard | Discovered new exit (range 15) 97 | -11/Scrapyard | Entered Materials 317 | -10/Materials | Build established: Mutant 397 | -10/Materials | Destroyed 7 combat bots 409 | -10/Materials | Discovered new exit (range 13) 592 | -10/Materials | Discovered new exit (range 8) 854 | -10/Materials | Entered Mines 864 | -10/Mines | Joined a pair of Derelicts in attacking an 0b10 outpost 1097 | -10/Mines | Learned location of Zion (-7) 1159 | -10/Mines | Found a hidden stash of uninstalled traps 1226 | -10/Mines | Discovered new exit (range 10) 1378 | -10/Mines | Found a damaged Exp. Sensor Array with a note attached 1383 | -10/Mines | Found Prototype Device 1389 | -10/Mines | Identified Exp. Sensor Array 1767 | -10/Mines | Assembled infested the area 1772 | -10/Mines | Assisted by a Guerilla fighting off Assembled 1797 | -10/Mines | Core integrity fell below 50% 1824 | -10/Mines | Destroyed 13 combat bots 1830 | -10/Mines | Core integrity fell below 20% 1831 | -10/Mines | Destroyed by D-53 Grenadier with Mini Grenade Launcher Last Messages --------------- 01797_ U-05 Engineer lays Concrete. 01797_ as-84504 destroyed. 01797_ U-05 Engineer destroyed. 01798_ as-87609 destroyed. 01799_ Grenade Launcher destroyed. 01800_ Penetrated by HV Slug. 01801_ The unstable cave ceiling collapses. 01802_ HV Slug penetrates as-57179. 01802_ as-57179 suffers critical hit (Destroy). 01802_ as-57179 destroyed. 01803_ as-58331 destroyed. 01806_ The unstable cave ceiling collapses. 01806_ Acquired 12 matter. 01813_ The unstable cave ceiling collapses. 01815_ Acquired 12 matter. 01825_ Lgt. Treads destroyed. 01826_ The unstable cave ceiling collapses. 01828_ Dropped Blade Trap. 01828_ Imp. Ion Engine destroyed. 01830_ The unstable cave ceiling collapses. Map ----- +----------------------------------------------------+ | | | | | | | | | | | | | | | | | | | | | | | | | | | ?????????????????????????????????????????????????? | | ??????????????????????????????????????????######## | | ?????????????###?????????????????????????##" ## | | ????????????## ????????????????????????#"" [# | | ????????????? ???????????????????????#! + | | ?????????????# ?##???????????????????#| + | | ??????????#### ## #####??????????????#""!!# | | ?????????## ###????????????##" ## | | ?????????# ##????????????#### | | ????????#" ##??????????????# | | ??????????# d% % #???#??????????## # | | ??????????# d #??? ###????????#### | | ?????????# @ ##### #???????????? | | ???????? # #???????????? | | ??????? ??##### ## #???????????? | | ??????? ???????????# # ##??????????? | | ????????????????????# #### #??????????? | | ????????????????????# ###??## #??????????? | | ????????????????????# #?????## #?????????## | | ????????????????????## #??????## ##???????## | | ?????????????????????## ##???????## ##?????## | | ??????????????????????## #?????????# ##???## | | ???????????????????????# #?????????## ##??# | | ??????????????????????? #??????????# #### | | ??????????????????????? ???????????# ## | | ???????????????????????##???????????## | | ?????????????????????????????????????#### | | ????????????????????????????????????????## | | ?????????????????????????????????????????## | | ??????????????????????????????????????????# | | ??????????????????????????????????????????## | | ???????????????????????????????????????????### | | ?????????????????????????????????????????????## | | ???????????????????????????????????????####???## | | ??????????????????????????????????????## ##???# | | ??????????????????????????????????????# ##??# | | ??????????????????????????????????????# #### | +----------------------------------------------------+ Best States ------------- Heat Dissipation 25 Energy Generation 12 Energy Capacity 265 Matter Stores 300 Matter Capacity 300 Sight Range 16 Robot Scan Range 20 Terrain Scan Density 10 Armor Coverage 150 Evasion (%) 40 Targeting Accuracy 5 Recoil Reduction 2 Item Schematics ----------------- None Robot Schematics ------------------ None Fabricated ------------ Nothing Alien Tech Used ----------------- None Achievements -------------- Quick And Dirty Challenges ------------ None Game ------ Seed ExplosiveAlphaSaw Manual? 0 Play Time 00:11:06 Cumulative 27.3 hours Start 2024.04.11 @ 18:10:32 End 2024.04.11 @ 18:19:57 Sessions 1 Manual Loads 0 Difficulty Rogue Special Mode None Game No. 18 Rogue 18 Adventurer 0 Explorer 0 Win Type - Total 0 Types 0/0/0/0/0/0/0/0/0 Lore% 22 Gallery% 27 Achievement% 21 Wizard Run 0 Options --------- Layout 1 ASCII 0 Keyboard 0 Movement Mouse Keybinds 0 Fullscreen 1 Font 24/Smallcaps Map View 50x35 Zoom Use 0% Tactical HUD 1 Map Filters NONE Filters NONE Steam 1 RUN: f05b357f-bbe7-4aea-a93f-e7a0937e2c66